bitfinex/quotes_BTCUSD_20240821
["timestamp","ask_amount","ask_price","bid_price","bid_amount"]
[1724282322973,2.01810292,61279.0,61278.0,0.0009075]
[1724282325218,2.13892909,61279.0,61278.0,0.0009075]
[1724282325335,2.13892509,61279.0,61278.0,0.0009075]
[1724282327055,2.01810292,61279.0,61278.0,0.0009075]
[1724282327212,2.13892509,61279.0,61278.0,0.0009075]
[1724282327370,2.01810292,61279.0,61278.0,0.0009075]
[1724282327576,2.13892509,61279.0,61278.0,0.0009075]
[1724282328893,2.01810292,61279.0,61278.0,0.0009075]
[1724282329067,2.34447892,61279.0,61278.0,0.0009075]
[1724282330002,2.46450784,61279.0,61278.0,0.0009075]
[1724282330182,2.4645077,61279.0,61278.0,0.0009075]
[1724282332259,2.39759363,61279.0,61278.0,0.0009075]
[1724282333855,2.2767794,61279.0,61278.0,0.0009075]
[1724282334130,2.2776044,61279.0,61278.0,0.0009075]
[1724282334523,2.30320632,61279.0,61278.0,0.0009075]
[1724282335579,1.83123032,61279.0,61278.0,0.0009075]
[1724282335754,1.92987578,61279.0,61278.0,0.0009075]
[1724282335968,1.48085432,61279.0,61278.0,0.0792075]
[1724282337539,1.20281413,61279.0,61278.0,0.1395075]
[1724282337733,0.72810232,61279.0,61278.0,0.1395075]
[1724282338880,0.71410232,61279.0,61278.0,0.1395075]
[1724282339245,0.72810232,61279.0,61278.0,0.1395075]
[1724282339451,0.81410232,61279.0,61278.0,0.1395075]
[1724282339662,0.50172632,61279.0,61278.0,0.1395075]
[1724282339998,0.82810232,61279.0,61278.0,0.1395075]
[1724282340231,1.15447832,61279.0,61278.0,0.12533876]
[1724282340582,1.12647832,61279.0,61278.0,0.12533876]
[1724282340755,1.12647832,61279.0,61276.0,0.0649064]
[1724282340756,0.815965,61277.0,61276.0,0.0649064]
[1724282340966,1.00296798,61277.0,61276.0,0.0649064]
[1724282341285,1.32935398,61277.0,61276.0,0.0649064]
[1724282341484,0.97996798,61277.0,61276.0,0.0649064]
[1724282341596,0.65358198,61277.0,61276.0,0.0649064]
[1724282342222,0.99396798,61277.0,61276.0,0.0649064]
[1724282342610,0.32719598,61277.0,61276.0,0.0649064]
[1724282342801,0.35519598,61277.0,61276.0,0.0649064]
[1724282343006,0.68158198,61277.0,61276.0,0.0649064]
[1724282343307,0.68158198,61277.0,61276.0,0.1479064]
[1724282343308,0.65358198,61277.0,61276.0,0.1479064]
[1724282343512,0.17800298,61277.0,61276.0,0.1479064]
[1724282344112,0.19100298,61277.0,61276.0,0.1479064]
[1724282345755,0.35419598,61277.0,61276.0,0.1479064]
[1724282346787,0.19100298,61277.0,61276.0,0.1479064]
[1724282347756,0.35419598,61277.0,61276.0,0.1479064]
[1724282348261,0.68058198,61277.0,61276.0,0.1479064]
[1724282348467,0.35419598,61277.0,61276.0,0.1479064]
[1724282349893,0.68058198,61277.0,61276.0,0.1479064]
[1724282351314,1.00696798,61277.0,61276.0,0.1479064]
[1724282352689,1.33335398,61277.0,61276.0,0.1479064]
[1724282353187,1.33335398,61277.0,61276.0,0.0009064]
[1724282353391,1.43445398,61277.0,61276.0,0.0009064]
[1724282353597,1.42988063,61277.0,61276.0,0.0009064]
[1724282354112,1.35735398,61277.0,61276.0,0.0009064]
[1724282354316,1.35935398,61277.0,61276.0,0.0009064]
[1724282354517,1.72203496,61277.0,61276.0,0.0009064]
[1724282354720,2.12552096,61277.0,61276.0,0.0009064]
[1724282354919,1.95754218,61277.0,61276.0,0.0009064]
[1724282355787,1.96154218,61277.0,61276.0,0.0009064]
[1724282356284,1.96161167,61277.0,61276.0,0.0009064]
[1724282356689,1.95961167,61277.0,61276.0,0.0009064]
[1724282356988,1.96161167,61277.0,61276.0,0.0009064]
[1724282357201,2.12559045,61277.0,61276.0,0.0009064]
[1724282357401,2.12558742,61277.0,61276.0,0.0009064]
[1724282357762,2.02881876,61277.0,61276.0,0.0009064]
[1724282358937,2.21488314,61277.0,61276.0,0.0009064]
[1724282359136,2.37981876,61277.0,61276.0,0.0009064]
[1724282359515,2.36581876,61277.0,61276.0,0.0009064]
[1724282359896,2.36681876,61277.0,61276.0,0.0009064]
[1724282360105,2.20283998,61277.0,61276.0,0.0009064]
[1724282361508,2.18883998,61277.0,61276.0,0.0009064]
[1724282361713,2.21683998,61277.0,61276.0,0.0009064]
[1724282362049,2.18883998,61277.0,61276.0,0.0009064]
[1724282362449,2.21683998,61277.0,61276.0,0.0009064]
[1724282362524,2.20283998,61277.0,61276.0,0.0009064]
[1724282362726,2.31238153,61277.0,61276.0,0.0009064]
[1724282362926,2.29838153,61277.0,61276.0,0.0009064]
[1724282363134,2.31238153,61277.0,61276.0,0.0009064]
[1724282368778,2.31238153,61277.0,61276.0,0.0008561]
[1724282369013,1.98677453,61277.0,61276.0,0.0008561]
[1724282369718,1.90967453,61277.0,61276.0,0.0008561]
[1724282369969,1.90967823,61277.0,61276.0,0.0008561]
[1724282370216,1.78873998,61277.0,61276.0,0.0008561]
[1724282370539,1.90968001,61277.0,61276.0,0.0008561]
[1724282370744,1.78873998,61277.0,61276.0,0.0008561]
[1724282371150,1.78673998,61277.0,61276.0,0.0008561]
[1724282371574,1.78473998,61277.0,61276.0,0.0008561]
[1724282371768,1.78873998,61277.0,61276.0,0.0008561]
[1724282371976,1.94539933,61277.0,61276.0,0.0008561]
[1724282372296,1.94139933,61277.0,61276.0,0.0008561]
[1724282372501,2.0239851,61277.0,61276.0,0.0008561]
[1724282372695,2.0199851,61277.0,61276.0,0.0008561]
[1724282372902,2.0219851,61277.0,61276.0,0.0008561]
[1724282373105,2.0239851,61277.0,61276.0,0.0008561]
[1724282373307,2.0199851,61277.0,61276.0,0.0008561]
[1724282374110,2.17843628,61277.0,61276.0,0.0008561]
[1724282374314,2.18043628,61277.0,61276.0,0.0008561]
[1724282376701,2.02400402,61277.0,61276.0,0.0008561]
[1724282376887,2.02200402,61277.0,61276.0,0.0008561]
[1724282377484,1.90103998,61277.0,61276.0,0.0008561]
[1724282380291,1.90303998,61277.0,61276.0,0.0008561]
[1724282381110,1.90386498,61277.0,61276.0,0.0008561]
[1724282383608,2.01819855,61277.0,61276.0,0.0008561]
[1724282386208,2.15909855,61277.0,61276.0,0.0008561]
[1724282387019,2.48548455,61277.0,61276.0,0.0008561]
[1724282387223,2.63081478,61277.0,61276.0,0.0008561]
[1724282387504,2.48548455,61277.0,61276.0,0.0008561]
[1724282387937,2.47148455,61277.0,61276.0,0.0008561]
[1724282388138,2.45748455,61277.0,61276.0,0.0008561]
[1724282388339,2.48548455,61277.0,61276.0,0.0008561]
[1724282388743,2.45748455,61277.0,61276.0,0.0008561]
[1724282388960,2.47148455,61277.0,61276.0,0.0008561]
[1724282389369,2.48548455,61277.0,61276.0,0.0008561]
[1724282390196,1.77156498,61277.0,61276.0,0.0008561]
[1724282390396,1.88586498,61277.0,61276.0,0.0008561]
[1724282390606,1.88986498,61277.0,61276.0,0.0008561]
[1724282391066,1.87586498,61277.0,61276.0,0.0008561]
[1724282391314,1.90386498,61277.0,61276.0,0.0008561]
[1724282391482,1.90347214,61277.0,61276.0,0.0008561]
[1724282391884,1.88947214,61277.0,61276.0,0.0008561]
[1724282392467,1.87547214,61277.0,61276.0,0.0008561]
[1724282393282,2.06876633,61277.0,61276.0,0.0008561]
[1724282393840,2.14626633,61277.0,61276.0,0.0008561]
[1724282394161,2.47265233,61277.0,61276.0,0.0008561]
[1724282394261,2.48665233,61277.0,61276.0,0.0008561]
[1724282395695,2.88665233,61277.0,61276.0,0.0008561]
[1724282398879,2.56026633,61277.0,61276.0,0.0008561]
[1724282399088,2.44877214,61277.0,61276.0,0.0008561]
[1724282399453,1.90347214,61277.0,61276.0,0.0008561]
[1724282401469,1.90347214,61277.0,61271.0,0.05660842]
[1724282401470,1.473858,61272.0,61271.0,0.05660842]
[1724282401676,1.87516098,61272.0,61271.0,0.05660842]
[1724282402292,1.90076413,61272.0,61271.0,0.05660842]
[1724282402908,1.91476413,61272.0,61271.0,0.05660842]
[1724282403700,1.92876413,61272.0,61271.0,0.05660842]
[1724282404148,1.81046413,61272.0,61271.0,0.05660842]
[1724282404331,1.92476413,61272.0,61271.0,0.05660842]
[1724282404557,1.92476413,61272.0,61271.0,0.11720842]
[1724282405159,1.92476413,61272.0,61271.0,0.11811592]
[1724282405576,1.92558913,61272.0,61271.0,0.11811592]
[1724282407896,2.0468508,61272.0,61271.0,0.11811592]
[1724282408286,2.0488508,61272.0,61271.0,0.11811592]
[1724282408488,2.02524765,61272.0,61271.0,0.11811592]
[1724282408626,2.02524765,61272.0,61271.0,0.05751592]
[1724282408833,1.90398598,61272.0,61271.0,0.0009075]
[1724282411135,0.816192,61260.0,61259.0,0.1423]
[1724282411347,1.09449498,61260.0,61259.0,0.1423]
[1724282411549,1.46946511,61260.0,61259.0,0.1423]
[1724282412905,1.48346511,61260.0,61259.0,0.1423]
[1724282413456,1.38316511,61260.0,61259.0,0.1423]
[1724282416113,1.05668811,61260.0,61259.0,0.1423]
[1724282417944,1.00819498,61260.0,61259.0,0.1423]
[1724282418153,1.05668089,61260.0,61259.0,0.1432075]
[1724282418556,1.05668104,61260.0,61259.0,0.1432075]
[1724282420369,0.07648606,61260.0,61259.0,0.2575075]
[1724282420634,0.07648606,61260.0,61259.0,1.4001945]
[1724282420635,0.028,61260.0,61259.0,1.4001945]
[1724282421028,0.028,61260.0,61259.0,1.2858945]
[1724282421230,0.028,61260.0,61259.0,1.4001945]
[1724282421432,0.014,61260.0,61259.0,1.4001945]
[1724282421682,0.01704567,61271.0,61259.0,0.7681715]
[1724282421962,0.01704567,61271.0,61269.0,0.0654]
[1724282421963,0.16400298,61270.0,61269.0,0.0654]
[1724282422174,0.16400298,61270.0,61269.0,0.1483]
[1724282423469,0.17000298,61270.0,61269.0,0.1483]
[1724282424082,0.17800298,61270.0,61269.0,0.1483]
[1724282426761,0.66763898,61270.0,61269.0,0.1483]
[1724282429064,0.17800298,61270.0,61269.0,0.1483]
[1724282429242,0.17800298,61270.0,61269.0,0.311514]
[1724282430444,0.17800298,61270.0,61269.0,0.6388505]
[1724282430667,0.17800298,61270.0,61269.0,0.3124215]
[1724282433918,0.17800298,61270.0,61269.0,0.9652795]
[1724282434067,0.17800298,61270.0,61269.0,1.0795795]
[1724282435088,0.17800298,61270.0,61269.0,0.6388505]
[1724282444607,0.18100298,61270.0,61269.0,0.6388505]
[1724282445804,0.017,61270.0,61269.0,1.0795795]
[1724282451080,0.017,61270.0,61269.0,1.4060085]
[1724282452107,0.003,61270.0,61269.0,1.4060085]
[1724282452980,0.004,61270.0,61269.0,1.4060085]
[1724282464376,0.004,61270.0,61269.0,1.4060085]
[1724282473080,0.004,61270.0,61269.0,1.7324375]
[1724282473854,0.003,61270.0,61269.0,1.7324375]
[1724282474215,0.003,61270.0,61269.0,1.7344375]
[1724282475205,0.004,61270.0,61269.0,1.7364375]
[1724282475804,0.004,61270.0,61269.0,1.6221375]
[1724282476023,0.004,61270.0,61269.0,1.7364375]
[1724282482406,0.004,61270.0,61269.0,1.7374375]
[1724282485420,0.004,61270.0,61269.0,1.7364375]
[1724282486992,0.004,61270.0,61269.0,2.27878533]
[1724282487229,0.004,61270.0,61269.0,2.27677281]
[1724282487862,0.004,61270.0,61269.0,2.27677588]
[1724282488708,0.004,61270.0,61269.0,2.23633425]
[1724282488912,0.004,61270.0,61269.0,2.28323817]
[1724282489092,0.004,61270.0,61269.0,2.28523817]
[1724282489286,0.004,61270.0,61269.0,2.28323817]
[1724282489486,0.004,61270.0,61269.0,2.23433425]
[1724282489896,0.004,61270.0,61269.0,2.22786948]
[1724282490093,0.004,61270.0,61269.0,1.6221375]
[1724282490328,0.004,61270.0,61269.0,0.0049075]
[1724282490329,0.30630298,61270.0,61269.0,0.0049075]
[1724282490703,1.12236298,61270.0,61269.0,0.0049075]
[1724282490882,0.46951498,61270.0,61269.0,0.0049075]
[1724282491448,0.79593898,61270.0,61269.0,0.0049075]
[1724282492072,0.79593898,61270.0,61269.0,0.0029075]
[1724282492288,0.79793898,61270.0,61269.0,0.0009075]
[1724282492490,0.80693898,61270.0,61269.0,0.0009075]
[1724282492892,0.80393898,61270.0,61269.0,0.0009075]
[1724282493470,0.81493898,61270.0,61269.0,0.0009075]
[1724282494188,0.062,61266.0,61263.0,0.1575975]
[1724282494407,0.24030298,61265.0,61263.0,0.1575975]
[1724282494612,0.24030298,61265.0,61262.0,0.163233]
[1724282495461,0.01704567,61264.0,61262.0,0.163233]
[1724282495671,0.163238,61260.0,61259.0,0.0009075]
[1724282495873,0.65371798,61260.0,61259.0,0.0009075]
[1724282495987,0.73051798,61260.0,61259.0,0.0009075]
[1724282496389,0.40404098,61260.0,61259.0,0.0009075]
[1724282497042,0.50704098,61260.0,61259.0,0.0009075]
[1724282497245,0.50804098,61260.0,61259.0,0.0009075]
[1724282497900,0.104,61260.0,61259.0,0.4906305]
[1724282498100,0.104,61260.0,61259.0,0.8171125]
[1724282498299,0.104,61260.0,61259.0,1.1435945]
[1724282498979,0.101,61260.0,61259.0,1.1435945]
[1724282499231,0.1,61260.0,61259.0,1.1435945]
[1724282499435,0.103,61260.0,61259.0,1.1435945]
[1724282499785,0.1,61260.0,61259.0,1.1435945]
[1724282502163,0.101,61260.0,61259.0,1.1435945]
[1724282502851,0.101,61260.0,61259.0,1.2194945]
[1724282504620,0.10060713,61260.0,61259.0,1.2194945]
[1724282509593,0.16100713,61260.0,61259.0,1.1435945]
[1724282510552,0.16183213,61260.0,61259.0,1.1435945]
[1724282511897,0.16183213,61260.0,61259.0,0.8171125]
[1724282514687,0.10143213,61260.0,61259.0,0.8171125]
[1724282519064,0.12703192,61260.0,61259.0,0.8171125]
[1724282519261,0.27043192,61260.0,61259.0,0.8171125]
[1724282520092,0.4344349,61260.0,61259.0,0.4906305]
[1724282523235,0.4344349,61260.0,61259.0,0.1641485]
[1724282523433,0.4344349,61260.0,61259.0,0.0009075]
[1724282523684,1.2506269,61260.0,61259.0,0.0009075]
[1724282523889,1.6001039,61260.0,61259.0,0.0009075]
[1724282524392,1.5991039,61260.0,61259.0,0.0009075]
[1724282524588,1.6031039,61260.0,61259.0,0.0009075]
[1724282524876,1.6021039,61260.0,61259.0,0.0009075]
[1724282525027,1.6111039,61260.0,61259.0,0.0009075]
[1724282525255,1.77308268,61260.0,61259.0,0.0009075]
[1724282525795,1.78908268,61260.0,61259.0,0.0009075]
[1724282525999,1.82339348,61260.0,61259.0,0.0009075]
[1724282526421,1.145687,61259.0,61258.0,0.0009075]
[1724282526638,1.94852726,61259.0,61258.0,0.0009075]
[1724282527014,1.90027198,61259.0,61258.0,0.0009075]
[1724282527451,1.94852726,61259.0,61258.0,0.0009075]
[1724282527651,1.91427198,61259.0,61258.0,0.0009075]
[1724282527780,1.58778998,61259.0,61258.0,0.0009075]
[1724282528610,1.58678998,61259.0,61258.0,0.0009075]
[1724282529221,1.60078998,61259.0,61258.0,0.0009075]
[1724282532108,1.27430798,61259.0,61258.0,0.0009075]
[1724282535107,1.25130798,61259.0,61258.0,0.0009075]
[1724282535707,0.92482598,61259.0,61258.0,0.0009075]
[1724282536460,0.25530298,61259.0,61258.0,0.0009075]
[1724282537310,0.40454398,61259.0,61258.0,0.0009075]
[1724282537451,0.39054398,61259.0,61258.0,0.0009075]
[1724282537646,0.72502598,61259.0,61258.0,0.0009075]
[1724282537854,0.73502598,61259.0,61258.0,0.0009075]
[1724282540191,0.40854398,61259.0,61258.0,0.0009075]
[1724282540391,0.73502598,61259.0,61258.0,0.0009075]
[1724282540833,0.40854398,61259.0,61258.0,0.0009075]
[1724282542230,0.73502598,61259.0,61258.0,0.0009075]
[1724282542440,0.40854398,61259.0,61258.0,0.0009075]
[1724282544245,0.73502598,61259.0,61258.0,0.0009075]
[1724282545331,0.81482598,61259.0,61258.0,0.0009075]
[1724282545736,0.81565098,61259.0,61258.0,0.0009075]
[1724282546949,0.48916898,61259.0,61258.0,0.0009075]
[1724282547148,0.40936898,61259.0,61258.0,0.0009075]
[1724282547729,0.34606898,61259.0,61258.0,0.0009075]
[1724282549936,0.67255098,61259.0,61258.0,0.0009075]
[1724282556914,0.99903298,61259.0,61258.0,0.0009075]
[1724282564485,1.13973298,61259.0,61258.0,0.0009075]
[1724282571876,1.18809967,61259.0,61258.0,0.0009075]
[1724282572081,1.13973298,61259.0,61258.0,0.0009075]
[1724282572831,1.18816,61259.0,61258.0,0.0009075]
[1724282573613,1.13973298,61259.0,61258.0,0.0009075]
[1724282575551,1.21237351,61259.0,61258.0,0.0009075]
[1724282575757,1.13577351,61259.0,61258.0,0.0009075]
[1724282577082,1.13583552,61259.0,61258.0,0.0009075]
[1724282577690,1.07173552,61259.0,61258.0,0.0009075]
[1724282577864,0.99903298,61259.0,61258.0,0.0009075]
[1724282578507,0.18282798,61259.0,61258.0,0.0009075]
[1724282578712,0.018825,61259.0,61258.0,1.0769245]
[1724282579063,0.018825,61259.0,61258.0,1.4034115]
[1724282579685,0.18282798,61259.0,61258.0,0.2444505]
[1724282580924,0.018825,61259.0,61258.0,0.8974245]
[1724282582174,0.018825,61259.0,61258.0,1.2848115]
[1724282589362,0.01843205,61259.0,61258.0,1.2848115]
[1724282593274,0.01843205,61259.0,61258.0,1.8980985]
[1724282593509,0.01843205,61259.0,61258.0,1.8970985]
[1724282594293,0.00843205,61259.0,61258.0,1.8970985]
[1724282594494,0.000825,61259.0,61258.0,1.8980985]
[1724282594646,0.002825,61259.0,61258.0,1.9000985]
[1724282594847,0.002825,61259.0,61258.0,1.6142985]
[1724282595683,0.002825,61259.0,61258.0,1.9000985]
[1724282597299,0.002825,61259.0,61258.0,1.9030985]
[1724282597677,0.002825,61259.0,61258.0,1.9010985]
[1724282598560,0.002825,61259.0,61258.0,1.9030985]
[1724282599351,0.002825,61259.0,61258.0,1.9000985]
[1724282601550,0.002825,61259.0,61258.0,2.39158848]
[1724282601952,0.002825,61259.0,61258.0,2.39831331]
[1724282605539,0.002825,61259.0,61258.0,1.9000985]
[1724282607136,0.002825,61259.0,61258.0,1.6142985]
[1724282607542,0.002825,61259.0,61258.0,1.5533985]
[1724282607943,0.002825,61259.0,61258.0,1.2269115]
[1724282608234,0.002825,61259.0,61258.0,1.1466115]
[1724282608391,0.001825,61259.0,61258.0,1.1456115]
[1724282608724,0.000825,61259.0,61258.0,1.1436115]
[1724282608900,0.001825,61259.0,61258.0,1.1456115]
[1724282610300,0.000825,61259.0,61258.0,1.1436115]
[1724282611573,0.001825,61259.0,61258.0,1.1456115]
[1724282611772,0.001825,61259.0,61258.0,1.1446115]
[1724282612071,0.002825,61259.0,61258.0,1.1466115]
[1724282612225,0.001825,61259.0,61258.0,1.1456115]
[1724282612586,0.001825,61259.0,61258.0,1.2599115]
[1724282612791,0.001825,61259.0,61258.0,1.2609115]
[1724282614920,0.001825,61259.0,61258.0,1.3441115]
[1724282619855,0.001825,61259.0,61258.0,1.4055115]
[1724282623761,0.001825,61259.0,61258.0,1.7319985]
[1724282633982,0.001825,61259.0,61258.0,1.78093561]
[1724282634386,0.001825,61259.0,61258.0,1.7319985]
[1724282634563,0.001825,61259.0,61258.0,1.7809475]
[1724282635368,0.001825,61259.0,61258.0,1.5873985]
[1724282635983,0.001825,61259.0,61258.0,1.1466115]
[1724282636188,0.145825,61259.0,61258.0,0.8201245]
[1724282642729,0.145825,61259.0,61245.0,0.109075]
[1724282642730,1.142928,61246.0,61245.0,0.009075]
[1724282642933,0.638446,61231.0,61230.0,0.00445727]
[1724282643127,1.24337998,61231.0,61230.0,0.00445727]
[1724282643492,1.28606338,61231.0,61230.0,0.00445727]
[1724282644220,1.29306338,61231.0,61230.0,0.00445727]
[1724282644430,1.28606338,61231.0,61230.0,0.00445727]
[1724282644831,1.17876338,61231.0,61230.0,0.00445727]
[1724282645043,0.85213238,61231.0,61230.0,0.00445727]
[1724282645261,0.86013238,61231.0,61230.0,0.00445727]
[1724282645458,0.53350138,61231.0,61230.0,0.00445727]
[1724282645657,0.86013238,61231.0,61230.0,0.00445727]
[1724282647677,0.37018638,61231.0,61230.0,0.00445727]
[1724282648589,0.1239834,61231.0,61230.0,0.16777527]
[1724282648818,0.0576834,61231.0,61230.0,0.16777527]
[1724282649212,0.0576834,61231.0,61230.0,0.00445727]
[1724282649827,0.0576834,61231.0,61230.0,0.16777527]
[1724282650531,0.0576834,61231.0,61230.0,0.00445727]
[1724282650933,0.0576834,61231.0,61230.0,0.16777527]
[1724282653640,0.0576834,61231.0,61230.0,0.00445727]
[1724282655246,0.0576834,61231.0,61216.0,0.009075]
[1724282655247,0.142,61230.0,61216.0,0.009075]
[1724282655456,1.12596798,61217.0,61216.0,0.009075]
[1724282655658,1.45467398,61217.0,61216.0,0.009075]
[1724282655922,1.91471584,61217.0,61216.0,0.009075]
[1724282656235,1.148509,61215.0,61197.0,0.009075]
[1724282656375,2.19122898,61215.0,61197.0,0.009075]
[1724282656558,2.25227016,61215.0,61197.0,0.009075]
[1724282656771,2.25957933,61215.0,61197.0,0.009075]
[1724282657184,2.19853815,61215.0,61197.0,0.009075]
[1724282658008,2.21253815,61215.0,61197.0,0.009075]
[1724282658387,2.22653815,61215.0,61197.0,0.009075]
[1724282658646,2.23960678,61215.0,61197.0,0.009075]
[1724282658878,2.23860678,61215.0,61197.0,0.009075]
[1724282659084,1.17597278,61215.0,61205.0,0.163383]
[1724282659229,1.17597278,61215.0,61200.0,0.0654]
[1724282659631,1.17597278,61215.0,61202.0,0.163392]
[1724282659876,1.16197278,61215.0,61202.0,0.163392]
[1724282660077,1.17597278,61215.0,61202.0,0.163391]
[1724282660250,1.17597278,61215.0,61203.0,0.163389]
[1724282660433,1.14797278,61215.0,61203.0,0.163389]
[1724282660829,1.17597278,61215.0,61203.0,0.163389]
[1724282661036,1.16197278,61215.0,61201.0,0.326788]
[1724282661433,1.17597278,61215.0,61201.0,0.326788]
[1724282661663,1.17597278,61215.0,61203.0,0.163388]
[1724282661856,1.17597278,61215.0,61204.0,0.163387]
[1724282662081,1.17597278,61215.0,61205.0,0.163384]
[1724282663551,1.17597278,61215.0,61214.0,0.00887]
[1724282664199,0.163377,61208.0,61207.0,0.00835907]
[1724282664394,0.17063613,61208.0,61207.0,0.00835907]
[1724282664870,0.03288239,61208.0,61207.0,0.00835907]
[1724282665640,0.20425939,61208.0,61207.0,0.00835907]
[1724282666906,0.19625939,61208.0,61207.0,0.00835907]
[1724282667099,0.20425939,61208.0,61207.0,0.00835907]
[1724282667323,0.21425939,61208.0,61207.0,0.00835907]
[1724282671084,0.70501637,61208.0,61207.0,0.00835907]
[1724282671485,1.03177037,61208.0,61207.0,0.00835907]
[1724282672925,0.70501637,61208.0,61207.0,0.00835907]
[1724282673883,0.722085,61208.0,61207.0,0.00835907]
[1724282674692,0.69640348,61208.0,61207.0,0.00835907]
[1724282674915,0.71482655,61208.0,61207.0,0.00835907]
[1724282677201,0.70482655,61208.0,61207.0,0.00835907]
[1724282677401,0.69682655,61208.0,61207.0,0.00835907]
[1724282677862,0.71682655,61208.0,61207.0,0.00835907]
[1724282678062,0.70782655,61208.0,61207.0,0.00835907]
[1724282678900,0.71782655,61208.0,61207.0,0.00835907]
[1724282679507,0.70682655,61208.0,61207.0,0.00835907]
[1724282679753,0.71882655,61208.0,61207.0,0.00835907]
[1724282680386,0.80112655,61208.0,61207.0,0.00835907]
[1724282680590,0.86352655,61208.0,61207.0,0.00835907]
[1724282680793,1.19028055,61208.0,61207.0,0.00835907]
[1724282682284,1.51703455,61208.0,61207.0,0.00835907]
[1724282683364,1.66940001,61208.0,61207.0,0.00835907]
[1724282683542,1.54003455,61208.0,61207.0,0.00835907]
[1724282684168,1.52803455,61208.0,61207.0,0.00835907]
[1724282684658,1.51803455,61208.0,61207.0,0.00835907]
[1724282685075,1.54603455,61208.0,61207.0,0.00835907]
[1724282685596,1.14628055,61208.0,61207.0,0.00835907]
[1724282685802,1.14710655,61208.0,61207.0,0.00835907]
[1724282689634,1.47386055,61208.0,61207.0,0.00835907]
[1724282689832,1.49686055,61208.0,61207.0,0.00835907]
[1724282691986,1.49786055,61208.0,61207.0,0.00835907]
[1724282692187,1.49686055,61208.0,61207.0,0.00835907]
[1724282700357,1.143789,61200.0,61199.0,0.0112486]
[1724282700588,1.73479198,61200.0,61199.0,0.0112486]
[1724282700776,2.23429335,61200.0,61199.0,0.0112486]
[1724282700925,2.18458898,61200.0,61199.0,0.0112486]
[1724282701123,2.29999109,61200.0,61199.0,0.0112486]
[1724282701326,2.22728813,61200.0,61199.0,0.0112486]
[1724282701529,2.29999109,61200.0,61199.0,0.0112486]
[1724282701727,2.31399109,61200.0,61199.0,0.0112486]
[1724282701931,2.29999109,61200.0,61199.0,0.0112486]
[1724282702291,2.24128813,61200.0,61199.0,0.0112486]
[1724282702491,2.25253613,61200.0,61199.0,0.0112486]
[1724282702738,1.96633613,61200.0,61199.0,0.0112486]
[1724282702942,1.56343913,61200.0,61199.0,0.0112486]
[1724282703182,0.73614513,61200.0,61199.0,0.0112486]
[1724282703513,0.40934813,61200.0,61199.0,0.0112486]
[1724282704138,0.72214513,61200.0,61199.0,0.0112486]
[1724282704317,0.73314513,61200.0,61199.0,0.0112486]
[1724282705038,0.71914513,61200.0,61199.0,0.0112486]
[1724282705481,0.73175185,61200.0,61199.0,0.0112486]
[1724282707611,0.73175185,61200.0,61199.0,0.0095986]
[1724282707987,0.24195013,61200.0,61199.0,0.0095986]
[1724282708202,0.06669915,61200.0,61199.0,0.6396016]
[1724282708406,0.06669915,61200.0,61199.0,0.9664036]
[1724282708719,0.05369915,61200.0,61199.0,0.9664036]
[1724282708920,0.05369915,61200.0,61199.0,0.6396016]
[1724282709125,0.05869915,61200.0,61199.0,0.6396016]
[1724282709563,0.04269915,61200.0,61199.0,0.6396016]
[1724282709995,0.04569915,61200.0,61199.0,0.6396016]
[1724282710200,0.04569915,61200.0,61199.0,0.6405102]
[1724282710372,0.04469915,61200.0,61199.0,0.6405102]
[1724282712391,0.04469915,61200.0,61199.0,0.9673122]
[1724282713433,0.04469915,61200.0,61199.0,1.2941142]
[1724282714717,0.04469915,61200.0,61199.0,1.2951142]
[1724282715362,0.04269915,61200.0,61199.0,1.2951142]
[1724282715563,0.04269915,61200.0,61199.0,1.2961142]
[1724282716855,0.02563052,61200.0,61199.0,1.2961142]
[1724282723955,0.02563052,61200.0,61199.0,2.40092118]
[1724282724156,0.02563052,61200.0,61199.0,2.64513101]
[1724282724401,0.02563052,61200.0,61199.0,2.38339581]
[1724282724601,0.02563052,61200.0,61199.0,2.67232591]
[1724282724805,0.02563052,61200.0,61199.0,2.6789081]
[1724282725166,0.02563052,61200.0,61199.0,2.75126474]
[1724282725443,0.02563052,61200.0,61199.0,3.53099153]
[1724282725622,0.02563052,61200.0,61199.0,3.48610337]
[1724282725829,0.02563052,61200.0,61199.0,3.48510337]
[1724282726029,0.02663052,61200.0,61199.0,3.48610337]
[1724282726549,0.02663052,61200.0,61199.0,3.48210337]
[1724282726911,0.02763052,61200.0,61199.0,3.48610337]
[1724282727113,0.02663052,61200.0,61199.0,3.48210337]
[1724282727629,0.02763052,61200.0,61199.0,3.48910337]
[1724282727830,0.02663052,61200.0,61199.0,3.48810337]
[1724282728032,0.02763052,61200.0,61199.0,3.49110337]
[1724282729087,0.02763052,61200.0,61199.0,3.58238359]
[1724282731949,0.02763052,61200.0,61199.0,3.90918559]
[1724282732154,0.02763052,61200.0,61199.0,3.96007375]
[1724282732358,0.000826,61207.0,61206.0,1.945307]
[1724282732555,0.000826,61207.0,61206.0,2.54219046]
[1724282732782,0.000826,61207.0,61206.0,2.91776086]
[1724282733136,0.000826,61207.0,61206.0,2.91775673]
[1724282733337,0.000826,61207.0,61206.0,2.86895546]
[1724282733597,0.002826,61207.0,61206.0,2.87495546]
[1724282733799,0.001826,61207.0,61206.0,2.87095546]
[1724282734310,0.001826,61207.0,61206.0,2.87295546]
[1724282734553,0.002826,61207.0,61206.0,2.83027498]
[1724282735395,0.002826,61207.0,61206.0,4.09007498]
[1724282735572,0.002826,61207.0,61206.0,4.13667472]
[1724282736454,0.002826,61207.0,61206.0,3.75830998]
[1724282736734,0.02844107,61207.0,61206.0,3.267542]
[1724282737000,0.02844107,61207.0,61206.0,3.27408653]
[1724282737743,0.02744107,61207.0,61206.0,3.27208653]
[1724282738156,0.001826,61207.0,61206.0,3.27208653]
[1724282738338,0.002826,61207.0,61206.0,3.28408653]
[1724282738556,0.002826,61207.0,61206.0,3.28008653]
[1724282738557,0.001826,61207.0,61206.0,3.28008653]
[1724282738760,0.001826,61207.0,61206.0,3.29308653]
[1724282739162,0.001826,61207.0,61206.0,3.28008653]
[1724282739359,0.001826,61207.0,61206.0,3.45908951]
[1724282739773,0.0274436,61207.0,61206.0,3.45908951]
[1724282739981,0.0264436,61207.0,61206.0,3.44708951]
[1724282740180,0.0264436,61207.0,61206.0,3.45908951]
[1724282740181,0.0274436,61207.0,61206.0,3.45908951]
[1724282740880,0.0264436,61207.0,61206.0,3.44708951]
[1724282741052,0.0264436,61207.0,61206.0,3.44608951]
[1724282741255,0.0264436,61207.0,61206.0,2.02228653]
[1724282741497,0.0274436,61207.0,61206.0,2.03628653]
[1724282744044,0.0274436,61207.0,61206.0,2.08096619]
[1724282744509,0.0274436,61207.0,61206.0,2.12756593]
[1724282746519,0.0274436,61207.0,61206.0,2.62133391]
[1724282746927,0.0274436,61207.0,61206.0,2.57473417]